bitfinex/quotes_ETHUSD_20240630
["timestamp","ask_amount","ask_price","bid_price","bid_amount"]
[1719763207963,0.40780255,3404.6,3404.2,0.05874729]
[1719763208164,0.52780255,3404.6,3404.3,0.35459017]
[1719763210132,0.52780255,3404.6,3404.3,1.26233486]
[1719763210287,0.52780255,3404.6,3404.5,3.3028]
[1719763210447,0.52780255,3404.6,3404.5,3.36153905]
[1719763210651,0.12,3404.6,3404.5,3.36153905]
[1719763211093,0.12,3404.6,3404.5,2.51253905]
[1719763211252,0.12,3404.6,3404.5,3.36153905]
[1719763211448,0.12,3404.6,3404.5,4.28517296]
[1719763212087,0.12,3404.6,3404.5,3.37743391]
[1719763212309,0.12,3404.6,3404.5,0.92363391]
[1719763217795,0.12,3404.6,3404.5,1.15291551]
[1719763220481,0.12,3404.6,3404.5,0.2292816]
[1719763222086,0.12,3404.6,3404.5,2.67212458]
[1719763224531,0.12,3404.6,3404.5,0.2292816]
[1719763242624,0.12,3404.6,3404.5,1.13702171]
[1719763243639,0.12,3404.6,3404.5,1.68702171]
[1719763243847,0.12,3404.6,3404.5,10.93291388]
[1719763244040,0.12,3404.6,3404.5,9.93832171]
[1719763255926,0.12,3404.6,3404.5,11.11475971]
[1719763268238,0.12,3404.6,3404.5,10.26575971]
[1719763268539,0.12,3404.6,3404.5,11.11475971]
[1719763268740,0.12,3404.6,3404.5,12.22623568]
[1719763273214,0.12,3404.6,3404.5,13.24881945]
[1719763273804,0.12,3404.6,3404.5,14.78266114]
[1719763274259,0.12,3404.6,3404.5,20.06924806]
[1719763274898,0.01436135,3404.6,3404.5,20.01050795]
[1719763275444,0.01436135,3404.6,3404.5,17.45408249]
[1719763275745,0.01436135,3404.6,3404.5,20.01037446]
[1719763276150,0.0680077,3405.7,3404.6,3.83519]
[1719763276351,0.0680077,3405.7,3405.6,0.849]
[1719763276647,0.0680077,3405.7,3405.6,7.4999771]
[1719763286157,0.0680077,3405.7,3405.6,6.6509771]
[1719763286309,2.4066077,3405.7,3405.6,6.1009771]
[1719763287817,2.4066077,3405.7,3405.6,5.8727]
[1719763288011,2.4066077,3405.7,3405.6,6.10081167]
[1719763311364,0.0680077,3405.7,3405.6,6.10081167]
[1719763311563,0.0680077,3405.7,3405.6,6.71089284]
[1719763311765,0.0680077,3405.7,3405.6,6.48278117]
[1719763312006,0.0680077,3405.7,3405.6,6.71093716]
[1719763313919,0.0680077,3405.7,3405.6,7.55993716]
[1719763317420,0.0680077,3405.7,3405.6,6.71093716]
[1719763320389,0.0680077,3405.7,3405.6,7.55993716]
[1719763320594,0.0680077,3405.7,3405.6,8.10993716]
[1719763325144,0.0680077,3405.7,3405.6,7.26093716]
[1719763330555,0.0680077,3405.7,3405.6,7.23093716]
[1719763331325,0.0680077,3405.7,3405.6,6.62085599]
[1719763334326,0.0680077,3405.7,3405.6,6.07085599]
[1719763335355,0.0680077,3405.7,3405.6,6.04285599]
[1719763336016,0.2140077,3405.7,3405.6,6.04285599]
[1719763337685,3.4996077,3405.7,3405.6,6.04285599]
[1719763337978,4.06330018,3405.7,3405.6,5.8147]
[1719763338340,4.06330018,3405.7,3405.6,6.03525019]
[1719763338780,3.21430018,3405.7,3405.6,6.03525019]
[1719763339568,3.21431041,3405.7,3405.6,6.03525019]
[1719763340531,3.21430891,3405.7,3405.6,6.03525019]
[1719763340739,3.00056847,3405.7,3405.6,6.03525019]
[1719763341175,3.21430909,3405.7,3405.6,6.03525019]
[1719763341481,3.00056847,3405.7,3405.6,6.03525019]
[1719763342172,3.21431017,3405.7,3405.6,5.8147]
[1719763342368,3.00056847,3405.7,3405.6,5.8147]
[1719763342549,3.00056847,3405.7,3405.6,6.03525019]
[1719763347024,3.84956847,3405.7,3405.6,6.03525019]
[1719763347167,4.06331742,3405.7,3405.6,6.03525019]
[1719763347364,4.06331742,3405.7,3405.6,5.8147]
[1719763347672,4.06331742,3405.7,3405.6,6.03525019]
[1719763347895,3.84956847,3405.7,3405.6,6.03525019]
[1719763348414,4.06331805,3405.7,3405.6,6.03525019]
[1719763348617,3.84956847,3405.7,3405.6,6.03525019]
[1719763348803,3.84956847,3405.7,3405.6,5.8147]
[1719763349185,3.84956847,3405.7,3405.6,6.03525019]
[1719763350034,3.00056847,3405.7,3405.6,6.03525019]
[1719763350213,3.84956847,3405.7,3405.6,6.03525019]
[1719763350381,3.00056847,3405.7,3405.6,5.8147]
[1719763350581,3.84956847,3405.7,3405.6,5.8147]
[1719763350889,3.84956847,3405.7,3405.6,6.03539493]
[1719763355705,3.00056847,3405.7,3405.6,6.03539493]
[1719763355904,2.6506077,3405.7,3405.6,6.03539493]
[1719763358129,0.2140077,3405.7,3405.6,6.03539493]
[1719763370968,0.2140077,3405.7,3405.6,8.1178]
[1719763371172,0.2140077,3405.7,3405.6,8.33846463]
[1719763372943,0.2140077,3405.7,3405.6,6.03536463]
[1719763377790,2.6147077,3405.7,3405.6,6.03536463]
[1719763384658,2.96107847,3405.7,3405.6,6.03536463]
[1719763385401,2.6147077,3405.7,3405.6,6.03536463]
[1719763386618,3.67744521,3405.7,3405.6,6.03536463]
[1719763386775,3.4637077,3405.7,3405.6,6.03536463]
[1719763387315,3.67744739,3405.7,3405.6,6.03536463]
[1719763387475,3.4637077,3405.7,3405.6,6.03536463]
[1719763387673,3.67744756,3405.7,3405.6,6.03536463]
[1719763387898,3.4637077,3405.7,3405.6,6.03536463]
[1719763388598,3.67744604,3405.7,3405.6,6.03536463]
[1719763388901,3.67744765,3405.7,3405.6,6.03536463]
[1719763389104,3.67744723,3405.7,3405.6,6.03536463]
[1719763389309,3.4637077,3405.7,3405.6,6.03536463]
[1719763389514,3.91373095,3405.7,3405.6,6.03536463]
[1719763390616,2.85097847,3405.7,3405.6,6.03536463]
[1719763390817,3.06474981,3405.7,3405.6,6.03536463]
[1719763391044,3.69997847,3405.7,3405.6,6.03536463]
[1719763391229,3.91374723,3405.7,3405.6,6.03536463]
[1719763392707,6.91374723,3405.7,3405.6,6.03536463]
[1719763393932,6.91375389,3405.7,3405.6,6.03536463]
[1719763396208,6.06475389,3405.7,3405.6,6.03536463]
[1719763396542,6.91375389,3405.7,3405.6,6.03536463]
[1719763397098,6.69997847,3405.7,3405.6,6.03536463]
[1719763397455,6.91374761,3405.7,3405.6,6.03536463]
[1719763400441,6.91374714,3405.7,3405.6,6.03536463]
[1719763400936,6.91374329,3405.7,3405.6,6.03536463]
[1719763403328,6.91374787,3405.7,3405.6,6.03536463]
[1719763403496,6.69997847,3405.7,3405.6,6.03536463]
[1719763403699,6.91374787,3405.7,3405.6,6.03536463]
[1719763406242,6.91374787,3405.7,3405.6,0.22066463]
[1719763406741,2.26,3405.6,3404.7,2.4802]
[1719763406943,0.849,3405.0,3404.7,2.4802]
[1719763407245,0.849,3405.0,3404.8,0.22090173]
[1719763407404,0.849,3405.0,3404.7,2.4802]
[1719763407604,0.849,3405.0,3404.1,2.454]
[1719763407948,0.849,3405.0,3404.2,1.21890402]
[1719763408145,0.849,3405.0,3404.3,2.454]
[1719763408745,2.4794,3405.4,3404.4,0.22092686]
[1719763409042,0.849,3405.1,3404.4,0.22092686]
[1719763409415,2.4794,3405.4,3404.4,0.22092686]
[1719763409633,0.849,3405.1,3404.5,0.36728915]
[1719763409835,0.849,3405.1,3404.5,0.58820972]
[1719763412440,2.4794,3405.4,3404.5,0.58820972]
[1719763412655,0.849,3405.1,3404.5,0.58820972]
[1719763413151,0.849,3405.1,3404.6,0.30422097]
[1719763413652,0.849,3405.1,3404.7,0.22093664]
[1719763414609,0.849,3405.1,3404.5,0.36728915]
[1719763414850,0.849,3405.1,3404.8,0.22093036]
[1719763415155,0.849,3405.2,3404.9,0.22092408]
[1719763415509,0.849,3405.2,3404.6,0.28212892]
[1719763415736,0.849,3405.2,3404.7,0.22093664]
[1719763416119,0.849,3405.2,3404.7,2.51683664]
[1719763416452,0.849,3405.2,3404.7,2.83346211]
[1719763416809,0.849,3405.3,3404.7,2.83346211]
[1719763419151,0.849,3405.1,3404.7,2.83346211]
[1719763419305,0.849,3405.1,3404.7,2.51683664]
[1719763420554,0.849,3405.3,3404.7,2.51683664]
[1719763423738,0.849,3405.1,3404.7,2.51683664]
[1719763424926,0.849,3405.1,3404.7,0.22093664]
[1719763425308,0.849,3405.1,3404.6,2.2959]
[1719763425514,0.849,3405.1,3404.8,0.21944679]
[1719763425858,0.849,3405.1,3404.7,0.21945307]
[1719763426159,0.849,3405.1,3404.9,0.21944051]
[1719763426355,3.3002,3405.1,3404.8,0.21944679]
[1719763426714,3.3002,3405.1,3404.3,2.2959]
[1719763426947,3.3002,3405.1,3404.9,0.21944051]
[1719763427146,3.3002,3405.1,3404.4,0.28459]
[1719763427355,3.3002,3405.1,3405.0,0.21943423]
[1719763427524,0.849,3405.1,3404.5,0.21946563]
[1719763428244,0.849,3405.1,3404.5,0.55446119]
[1719763431454,0.21378397,3405.0,3404.5,0.55446119]
[1719763431961,0.849,3405.2,3404.5,0.55446119]
[1719763432255,0.21377529,3405.1,3404.5,0.55446119]
[1719763432462,0.21377529,3405.1,3404.6,0.28503612]
[1719763432463,0.2137755,3405.1,3404.6,0.28503612]
[1719763432656,0.21377535,3405.1,3404.6,0.50451733]
[1719763436445,0.2137888,3404.9,3404.7,0.21947493]
[1719763436636,0.2137888,3404.9,3404.3,2.2959]
[1719763436870,0.2137888,3404.9,3404.8,0.21948549]
[1719763437160,0.2137888,3404.9,3404.3,2.2959]
[1719763437866,0.2137888,3404.9,3404.4,0.21951062]
[1719763439279,0.849,3404.8,3404.4,0.21951062]
[1719763439437,0.21379241,3404.7,3404.4,0.21951062]
[1719763439638,0.21379602,3404.7,3404.4,0.21951062]
[1719763440355,0.849,3404.6,3404.4,0.21951062]
[1719763440553,0.849,3404.6,3404.1,2.2997]
[1719763440757,0.849,3404.6,3404.5,0.21952791]
[1719763440954,1.06280594,3404.6,3404.1,2.2997]
[1719763441165,0.849,3404.6,3404.5,0.21952791]
[1719763441352,1.3915661,3404.6,3403.7,2.2997]
[1719763441664,0.849,3404.6,3403.8,0.76957189]
[1719763441873,0.21381114,3404.5,3403.8,0.76957189]
[1719763442184,0.849,3404.6,3403.8,0.76957189]
[1719763446046,2.4386,3404.5,3403.8,0.76957189]
[1719763446283,2.4386,3404.5,3403.9,0.39182719]
[1719763446783,2.4386,3404.5,3404.0,0.21962502]
[1719763446952,0.849,3404.4,3404.0,0.21962502]
[1719763449249,2.3095,3404.3,3404.0,0.21962502]
[1719763449668,2.3095,3404.3,3403.5,2.2868]
[1719763449985,0.849,3404.2,3404.1,0.2196659]
[1719763450488,0.849,3404.2,3403.6,0.55]
[1719763450975,0.849,3404.2,3403.7,0.21969104]
[1719763454700,2.3095,3404.3,3403.7,0.21969104]
[1719763456106,0.849,3404.2,3403.7,0.21969104]
[1719763456259,0.849,3404.0,3403.7,0.21969104]
[1719763456453,2.3078,3403.9,3403.1,2.2563]
[1719763456649,2.3078,3403.9,3403.8,0.21971844]
[1719763456849,2.3078,3403.9,3403.1,3.1053]
[1719763457061,2.3078,3403.9,3403.8,0.21971844]
[1719763457278,2.3078,3403.9,3403.1,3.5335304]
[1719763457497,2.3078,3403.9,3403.8,0.21971844]
[1719763457853,2.3078,3403.9,3403.1,3.1053]
[1719763458058,2.3078,3403.9,3403.8,0.21971844]
[1719763458352,2.3078,3403.9,3403.2,0.55]
[1719763458670,2.3078,3403.9,3403.3,0.58527987]
[1719763459015,7.28,3404.4,3403.4,2.2563]
[1719763459016,3.1568,3404.3,3403.4,2.2563]
[1719763459502,3.1568,3404.3,3403.4,2.47604358]
[1719763459808,3.1568,3404.3,3403.4,3.32504358]
[1719763460100,3.1568,3404.3,3403.4,3.74910094]
[1719763460265,7.28,3404.4,3403.5,0.55]
[1719763460266,8.129,3404.4,3403.5,0.55]
[1719763460472,2.3078,3404.2,3403.5,0.55]
[1719763460665,2.3078,3404.2,3403.6,0.21983544]
[1719763463897,3.849,3404.3,3403.6,0.21983544]
[1719763464106,0.849,3404.3,3403.6,0.21983544]
[1719763464396,3.849,3404.3,3403.6,0.21983544]
[1719763464601,3.849,3404.3,3403.5,0.55]
[1719763464902,3.849,3404.3,3403.6,0.21983544]
[1719763468712,3.849,3404.3,3403.4,2.2563]
[1719763468865,0.849,3404.1,3403.4,2.2563]
[1719763469209,0.849,3404.1,3403.5,0.21984173]
[1719763474636,0.849,3403.9,3403.5,0.21984173]
[1719763475495,0.849,3403.9,3403.4,2.2563]
[1719763476623,2.4319,3404.0,3403.4,2.2563]
[1719763476791,3.2809,3404.0,3403.4,2.2563]
[1719763477824,3.2809,3404.0,3402.4,0.30706123]
[1719763477825,0.849,3403.7,3402.9,2.3384]
[1719763478022,0.849,3403.5,3402.9,2.3384]
[1719763478322,0.849,3403.5,3403.0,0.2199372]
[1719763482599,0.849,3403.5,3402.9,2.3384]
[1719763482987,3.2809,3403.5,3403.0,0.2199372]
[1719763483925,3.90899,3403.5,3403.0,0.2199372]
[1719763484226,3.90899,3403.5,3403.1,0.21993091]
[1719763484380,3.90899,3403.5,3402.7,2.3384]
[1719763484581,3.2809,3403.5,3402.8,0.55]
[1719763484788,3.2809,3403.5,3402.8,0.7700391]
[1719763487167,0.849,3403.3,3402.8,0.7700391]
[1719763487680,0.849,3403.3,3402.8,0.2200391]
[1719763487838,0.849,3403.3,3402.5,2.4339]
[1719763488021,0.849,3403.3,3402.6,0.77005168]
[1719763488652,3.1695,3403.1,3402.6,0.22005168]
[1719763488972,0.849,3402.9,3402.4,0.30705889]
[1719763489273,3.1695,3403.1,3402.4,0.30705889]
[1719763489437,3.1695,3403.1,3402.5,0.22005797]
[1719763489641,3.48645,3403.1,3402.5,0.22005797]
[1719763490342,3.48645,3403.1,3402.3,2.4339]
[1719763490518,3.48645,3403.1,3402.6,0.22005168]
[1719763490723,3.48645,3403.1,3402.3,2.4339]
[1719763490967,3.1695,3403.1,3402.7,0.22004539]
[1719763491163,3.1695,3403.1,3402.3,2.4339]
[1719763491321,3.1695,3403.1,3402.8,0.2200391]
[1719763491518,3.1695,3403.1,3402.3,2.4339]
[1719763491739,3.1695,3403.1,3402.9,0.22003282]
[1719763491943,3.1695,3403.1,3402.3,2.4339]
[1719763491944,0.31695,3403.0,3402.3,2.4339]
[1719763492137,3.1695,3403.1,3402.3,2.4339]
[1719763492332,3.1695,3403.1,3402.4,0.22006426]
[1719763494367,0.849,3402.9,3402.4,0.22006426]
[1719763495236,0.849,3402.9,3402.1,2.3403]
[1719763495443,0.849,3402.9,3402.2,0.22007684]
[1719763498275,0.849,3402.7,3402.2,0.22007684]
[1719763500542,0.849,3402.5,3402.2,0.22007684]
[1719763500741,0.849,3402.3,3401.7,2.3403]
[1719763501878,0.849,3402.2,3401.5,2.3403]
[1719763502254,0.849,3402.0,3401.5,2.3403]
[1719763506136,0.849,3402.0,3401.2,2.3403]
[1719763506360,0.849,3402.0,3401.3,0.55]
[1719763506553,0.849,3402.0,3401.3,0.92393]
[1719763506974,3.2245,3402.0,3401.3,0.92393]
[1719763507405,2.3755,3402.0,3401.3,0.92393]
[1719763507700,0.849,3401.9,3401.3,0.92393]
[1719763509620,0.849,3401.9,3401.3,0.37393]
[1719763509786,0.849,3401.9,3401.2,2.3403]
[1719763509965,2.3755,3402.0,3401.2,2.3403]
[1719763510294,2.3755,3402.0,3400.8,1.177708]
[1719763510295,0.849,3401.9,3401.3,0.21331781]
[1719763510503,0.849,3401.9,3401.0,0.849]
[1719763510817,0.849,3401.9,3401.4,0.21332501]
[1719763511104,0.849,3401.9,3401.0,0.849]
[1719763511105,0.849,3401.9,3401.5,0.21331872]
[1719763511316,2.3755,3402.0,3400.9,2.3274]
[1719763511317,0.849,3401.7,3400.9,2.3274]
[1719763511464,0.849,3401.7,3401.6,0.21331242]
[1719763511665,0.849,3401.7,3401.0,0.55]
[1719763511863,0.849,3401.7,3401.1,0.21334558]
[1719763512466,3.1632,3401.7,3401.1,0.21334558]
[1719763513568,3.1632,3401.7,3401.1,0.60732014]
[1719763514314,2.3142,3401.7,3401.1,0.60732014]
[1719763516970,3.1632,3401.7,3401.1,0.60732014]
[1719763517675,2.3142,3401.7,3401.1,0.60732014]
[1719763519118,0.146,3401.9,3401.2,2.4717]
[1719763519288,0.146,3401.9,3401.2,3.53407134]
[1719763520919,0.146,3401.9,3401.2,3.59286973]
[1719763521073,0.146,3401.9,3401.3,0.41428697]
[1719763521273,0.146,3401.9,3401.3,0.62598535]
[1719763521670,0.146,3401.9,3401.4,2.53049616]
[1719763521902,0.146,3401.9,3401.5,0.55]
[1719763522098,0.146,3401.9,3401.5,0.76168579]
[1719763522324,0.146,3401.9,3401.6,0.47083648]
[1719763522489,0.146,3401.9,3401.6,0.68251261]
[1719763523040,0.146,3401.9,3401.6,0.21167613]
[1719763523215,0.146,3401.9,3401.6,0.27046595]
[1719763523417,0.146,3401.9,3401.6,0.21167613]
[1719763524020,0.146,3401.9,3401.2,2.4717]
[1719763524215,0.146,3401.9,3401.3,0.55]
[1719763524807,0.146,3401.9,3401.7,0.21166983]
[1719763525143,0.146,3401.9,3401.8,0.21166354]
[1719763525313,0.146,3401.9,3401.3,0.55]
[1719763525520,0.146,3401.9,3401.8,0.21166354]
[1719763525724,0.146,3401.9,3401.4,0.38707]
[1719763525938,0.146,3401.9,3401.8,0.21166354]
[1719763526111,0.146,3401.9,3401.4,0.44586322]
[1719763526805,0.146,3401.9,3401.5,0.21168242]
[1719763527007,0.146,3401.9,3401.6,0.20565456]
[1719763527549,0.146,3401.9,3401.7,0.21165802]
[1719763529635,0.146,3401.9,3401.4,0.38707]
[1719763529836,0.146,3401.9,3401.8,0.21165173]
[1719763530048,2.5404,3401.9,3401.3,1.45779355]
[1719763530261,2.5404,3401.9,3401.3,1.85074291]
[1719763530662,2.5404,3401.9,3401.4,0.2116769]
[1719763532068,2.5404,3401.9,3401.4,0.29348878]
[1719763534441,2.5404,3401.9,3401.4,0.08181188]
[1719763534656,2.5404,3401.9,3401.0,0.849]
[1719763534967,2.5404,3401.9,3401.1,0.8758]
[1719763535152,2.5404,3401.9,3401.1,1.22811911]
[1719763536169,3.3894,3401.9,3401.1,1.22811911]
[1719763538730,3.3894,3401.9,3401.1,1.1693219]
[1719763539773,2.3713,3401.8,3401.1,1.1693219]
[1719763540177,2.3713,3401.8,3401.1,0.6193219]
[1719763540342,2.3713,3401.8,3401.1,0.2935219]
[1719763540734,2.3713,3401.8,3400.9,3.258]
[1719763541034,2.3713,3401.8,3401.0,0.55]
[1719763541234,2.3713,3401.8,3401.1,0.2935219]
[1719763542466,0.849,3401.7,3401.1,0.2935219]
[1719763543037,2.3713,3401.8,3401.1,0.2935219]
[1719763543235,3.2203,3401.8,3401.1,0.2935219]
[1719763544077,2.3713,3401.7,3401.1,0.2935219]
[1719763544782,0.849,3401.6,3401.1,0.2935219]
[1719763545072,2.3713,3401.5,3400.6,2.3848]
[1719763545298,3.2203,3401.5,3400.7,0.843663]
[1719763545460,3.2203,3401.5,3400.8,0.849]
[1719763545657,3.2203,3401.5,3400.9,0.84364559]
[1719763548314,3.2203,3401.5,3400.9,0.29364559]
[1719763548967,2.3713,3401.5,3400.6,3.47228]
[1719763549155,2.3713,3401.5,3401.0,0.29363689]
[1719763549352,2.3713,3401.5,3400.7,0.55]
[1719763549859,2.3713,3401.5,3400.8,0.29369142]
[1719763550153,2.3713,3401.5,3400.8,1.14269142]
[1719763550461,2.3713,3401.5,3400.9,0.43159714]
[1719763550655,2.3713,3401.5,3401.0,0.29367401]
[1719763550857,2.4993,3401.7,3401.0,1.20147778]
[1719763551057,2.4993,3401.7,3401.0,3.52307778]
[1719763551257,2.4993,3401.7,3401.1,0.35230778]
[1719763551531,2.4993,3401.7,3401.2,0.29365493]
[1719763552061,2.4993,3401.7,3401.0,2.3216]
[1719763552262,2.4993,3401.7,3401.1,0.29366363]
[1719763561572,3.0,3401.8,3401.1,0.29366363]
[1719763561698,5.4356,3401.9,3401.1,0.29366363]
[1719763563199,0.62846,3401.8,3401.1,0.29366363]
[1719763563400,3.0,3401.8,3401.1,0.29366363]
[1719763563602,5.4356,3401.9,3401.1,0.29366363]
[1719763565346,5.4356,3401.9,3401.1,1.14266363]
[1719763565515,3.2846,3401.9,3401.1,1.14266363]
[1719763565717,3.0,3401.8,3401.1,1.49497003]
[1719763567171,2.4356,3401.9,3401.1,1.49497003]
[1719763567772,5.4356,3401.9,3401.1,1.49497003]
[1719763568650,0.146,3401.9,3401.1,1.49497003]
[1719763569192,0.146,3401.9,3401.2,2.4675]
[1719763569673,0.146,3401.9,3401.3,0.29364961]
[1719763571170,0.146,3401.9,3401.3,0.68989521]
[1719763571349,0.146,3401.9,3401.7,0.849]
[1719763571883,0.146,3401.9,3401.8,0.29358079]
[1719763572283,0.146,3401.9,3401.6,0.05878986]
[1719763572663,0.146,3401.9,3401.7,0.29357599]
[1719763574563,0.146,3401.9,3401.7,0.66046258]
[1719763579969,0.146,3401.9,3401.7,1.50946258]
[1719763582892,0.146,3401.9,3401.7,0.66046258]
[1719763583089,0.146,3401.9,3401.7,1.50946258]
[1719763583796,0.146,3401.9,3401.7,0.66046258]
[1719763583994,0.146,3401.9,3401.7,0.29357599]
[1719763584179,0.146,3401.9,3401.5,3.3165]
[1719763584390,0.146,3401.9,3401.8,0.29356729]
[1719763584691,0.146,3401.9,3401.5,3.3165]
[1719763584859,0.146,3401.9,3401.8,0.29351162]
[1719763585057,0.146,3401.9,3401.5,0.849]
[1719763585396,0.146,3401.9,3401.6,0.87172]
[1719763585696,0.146,3401.9,3401.6,1.16524902]
[1719763588622,0.146,3401.9,3401.8,0.849]
[1719763588977,0.146,3401.9,3401.8,1.14251162]
[1719763599431,0.146,3401.9,3401.8,1.20129842]
[1719763599575,0.146,3401.9,3401.8,4.53274026]
[1719763599911,0.146,3401.9,3401.8,4.09379842]
[1719763601419,0.146,3401.9,3401.8,9.97299842]
[1719763619786,0.146,3401.9,3401.8,10.99643171]
[1719763619978,0.146,3401.9,3401.8,12.53154574]
[1719763620176,0.146,3401.9,3401.8,14.32287935]
[1719763620789,0.146,3401.9,3401.8,14.32280521]
[1719763622583,0.146,3401.9,3401.8,11.76433203]
[1719763622785,0.146,3401.9,3401.8,14.32283268]
[1719763622982,0.146,3401.9,3401.8,11.76433203]
[1719763623157,0.146,3401.9,3401.8,14.32279943]
[1719763624495,0.146,3401.9,3401.8,12.78771899]
[1719763625662,0.146,3401.9,3401.8,12.78772065]
[1719763626158,0.146,3401.9,3401.8,12.78772086]
[1719763627811,0.146,3401.9,3401.8,14.19874406]
[1719763627980,0.146,3401.9,3401.8,13.17535523]
[1719763629907,0.146,3401.9,3401.8,8.51404523]
[1719763630096,0.146,3401.9,3401.8,9.36304523]
[1719763637532,0.146,3401.9,3401.8,7.57171162]
[1719763644656,0.146,3401.9,3401.8,7.2782]
[1719763644857,0.146,3401.9,3401.8,7.56130015]
[1719763649370,0.146,3401.9,3401.8,6.71230015]
[1719763649569,0.146,3401.9,3401.8,7.56130015]
[1719763649770,0.146,3401.9,3401.8,7.50060217]
[1719763649967,0.146,3401.9,3401.8,8.34960217]
[1719763650825,0.146,3401.9,3401.8,6.16230015]
[1719763650826,2.5089,3401.9,3401.8,6.16230015]
[1719763665441,3.3579,3401.9,3401.8,6.16230015]
[1719763665671,3.3579,3401.9,3401.8,5.8792]
[1719763665831,3.3579,3401.9,3401.8,6.16182373]
[1719763666032,3.69369,3401.9,3401.8,6.16182373]
[1719763672995,6.69369,3401.9,3401.8,6.16182373]
[1719763673352,6.69369,3401.9,3401.8,5.8792]
[1719763673690,6.69369,3401.9,3401.8,6.16186585]
[1719763677800,6.69369,3401.9,3401.8,6.16186585]
[1719763688615,6.69369,3401.9,3401.8,0.28266585]
[1719763688937,2.2952,3401.8,3400.4,2.3288]
[1719763689078,0.849,3401.4,3400.5,1.199667]
[1719763689273,2.2952,3401.3,3400.6,0.28285787]
[1719763690793,2.2952,3401.3,3400.4,3.1778]
[1719763691005,2.2952,3401.3,3400.7,0.28286602]
[1719763691278,0.31442,3401.2,3400.8,0.28285731]
[1719763691494,0.31442,3401.2,3400.4,3.1778]
[1719763691719,2.2952,3401.3,3400.5,0.28288342]
[1719763692414,2.3737,3401.7,3400.7,2.3271]
[1719763692718,5.3737,3401.7,3400.7,2.3271]
[1719763693665,0.849,3401.5,3400.8,0.28285731]
[1719763694016,2.3737,3401.4,3400.8,0.28285731]
[1719763699332,0.62227,3401.3,3400.5,3.1761]
[1719763699533,2.3737,3401.4,3400.6,0.28296233]
[1719763712413,3.2227,3401.4,3400.6,0.28296233]
[1719763718634,0.849,3401.2,3400.6,0.28296233]
[1719763719078,0.63969625,3401.1,3400.6,0.28296233]
[1719763719284,3.0,3401.3,3400.6,0.28296233]
[1719763719585,0.63960552,3401.2,3400.6,0.28296233]
[1719763719780,1.48860552,3401.2,3400.6,0.28296233]
[1719763719978,0.849,3401.2,3400.6,0.28296233]
[1719763723923,0.63961614,3401.1,3400.6,0.28296233]
[1719763724790,0.63961614,3401.1,3400.5,2.3271]
[1719763724990,1.34578405,3401.1,3400.5,2.3271]
[1719763725222,0.70616791,3401.1,3400.5,2.3271]
[1719763725529,0.63967524,3401.0,3400.5,2.3271]
[1719763726225,0.70616791,3401.1,3400.5,2.3271]
[1719763726411,1.48863176,3401.0,3400.5,2.3271]
[1719763726617,0.21947997,3400.9,3400.5,2.3271]
[1719763726813,0.21947997,3400.9,3400.1,2.461]
[1719763727230,0.21947997,3400.9,3400.2,0.28304098]
[1719763728115,0.21947997,3400.9,3400.3,2.3716]
[1719763728317,0.849,3401.0,3400.4,0.28302358]
[1719763728786,3.06046791,3401.1,3400.4,0.28302358]
[1719763728989,0.63966738,3401.0,3400.4,0.28302358]
[1719763729293,0.63966738,3401.0,3400.3,2.3716]
[1719763729506,3.90946791,3401.1,3400.4,0.28302358]
[1719763729705,1.26194532,3401.0,3400.3,2.3716]
[1719763729914,0.62227,3401.0,3400.4,0.28302358]
[1719763732639,0.62227,3401.0,3400.5,2.2667]
[1719763732791,0.849,3401.3,3400.5,2.2667]
[1719763732987,0.6395701,3401.2,3400.6,0.28300617]
[1719763735352,0.6395701,3401.2,3400.6,1.13200617]
[1719763735500,0.6395701,3401.2,3400.6,0.28300617]
[1719763735695,0.63954229,3401.1,3400.6,0.28300617]
[1719763735897,3.0,3401.3,3400.8,2.2667]
[1719763736247,0.849,3401.5,3400.9,0.28302051]
[1719763736447,0.63949594,3401.4,3400.9,0.28302051]
[1719763736736,0.63949594,3401.4,3401.0,0.28301181]
[1719763736890,0.63949594,3401.4,3400.8,2.2667]
[1719763738425,2.2583,3401.3,3400.5,2.2667]
[1719763738627,0.63949594,3401.2,3400.5,2.2667]
[1719763738923,5.2583,3401.3,3400.5,2.2667]
[1719763739122,0.63953198,3401.2,3400.6,0.28303481]
[1719763739348,3.63953198,3401.2,3400.5,2.2667]
[1719763739505,0.63953198,3401.1,3400.5,2.2667]
[1719763741313,3.0,3401.2,3400.5,2.2667]
[1719763741567,0.63966622,3401.1,3400.5,2.2667]
[1719763741741,3.0,3401.2,3400.5,2.2667]
[1719763741946,0.63966475,3401.1,3400.5,2.2667]
[1719763744521,3.0,3401.2,3400.5,2.2667]
[1719763744753,0.63957439,3401.1,3400.5,2.2667]
[1719763745914,3.0,3401.2,3400.5,2.2667]
[1719763746268,0.63957423,3401.1,3400.5,2.2667]
[1719763748068,3.0,3401.2,3400.5,2.2667]
[1719763748228,0.63957094,3401.1,3400.5,2.2667]
[1719763748428,3.0,3401.2,3400.5,2.2667]
[1719763748660,2.2583,3401.3,3400.5,2.2667]
[1719763748661,0.63957171,3401.1,3400.5,2.2667]
[1719763748967,0.63963146,3401.0,3400.5,2.2667]
[1719763749276,3.61073,3401.2,3400.5,2.2667]
[1719763749428,0.63967253,3401.1,3400.5,2.2667]
[1719763751380,4.45973,3401.2,3400.5,2.2667]
[1719763751381,0.63968822,3401.0,3400.5,2.2667]
[1719763751529,0.63968822,3400.9,3400.5,2.2667]
[1719763751731,4.45973,3401.2,3400.5,2.2667]
[1719763751930,1.31145125,3401.1,3400.5,2.2667]
[1719763752231,0.63964825,3401.0,3400.5,2.2667]
[1719763754272,0.671803,3401.1,3400.5,2.2667]
[1719763754474,0.63957812,3401.0,3400.5,2.2667]
[1719763755682,0.63957812,3401.0,3400.3,2.3044]